[Event "I Liga Centralne Srbije"]
[Site "Bajina Bašta, Serbia"]
[Date "2020.10.14"]
[Round "7.1"]
[White "Budisavljevic, Luka"]
[Black "Ivic, Velimir"]
[Result "1-0"]
[ECO "D36"]
[WhiteElo "2454"]
[BlackElo "2548"]
[Annotator "Knez"]
[PlyCount "307"]
[EventDate "2020.??.??"]
[TimeControl "90"]

1. Nf3 {[%emt 3:11:54]} Nf6 {[%emt 0:02:57]} 2. c4 {[%emt 0:00:09]} e6 {
[%emt 0:01:19]} 3. d4 {[%emt 0:02:18]} d5 {[%emt 0:00:10]} 4. Nc3 {[%emt 0:01:
58]} Be7 {[%emt 0:02:59]} 5. cxd5 {[%emt 0:00:58]} exd5 {[%emt 0:00:16]} 6. Bg5
{[%emt 0:00:09]} c6 {[%emt 0:05:15]} 7. Qc2 {[%emt 0:00:07]} g6 {[%emt 0:02:49]
} 8. e3 {[%emt 0:00:16]} Bf5 {[%emt 0:00:16]} 9. Bd3 {[%emt 0:00:15]} Bxd3 {
[%emt 0:00:13]} 10. Qxd3 {[%emt 0:00:05]} Nbd7 {[%emt 0:02:56]} 11. O-O {
[%emt 0:01:03]} O-O {[%emt 0:02:47]} 12. Rab1 {[%emt 0:01:35]} a5 {[%emt 0:04:
48]} 13. Rfc1 {[%emt 0:00:54]} Re8 {[%emt 0:01:28]} 14. Nd2 {[%emt 0:04:25]}
Nf8 {[%emt 0:05:37]} 15. Na4 {[%emt 0:05:03]} Ne6 {[%emt 0:01:30]} 16. Bh4 {
[%emt 0:01:32]} Nh5 {[%emt 0:07:46]} 17. Bxe7 {[%emt 0:07:26]} Qxe7 {[%emt 0:
00:32]} 18. a3 {[%emt 0:05:30]} f5 {[%emt 0:02:54]} 19. Nf3 {[%emt 0:09:15]}
Nf6 {[%emt 0:02:19]} 20. g3 {[%emt 0:05:22]} Ne4 {[%emt 0:01:53]} 21. Ne5 {
[%emt 0:02:02]} g5 {[%emt 0:12:00]} 22. Nc3 {[%emt 0:16:29]} g4 {[%emt 0:11:05]
} 23. Nxe4 {[%emt 0:04:33]} fxe4 {[%emt 0:00:08]} 24. Qe2 {[%emt 0:01:12]} Kh8
{[%emt 0:01:14]} 25. Qxg4 {[%emt 0:02:09]} Rg8 {[%emt 0:00:29]} 26. Qh3 {
[%emt 0:02:17]} Raf8 {[%emt 0:00:49]} 27. b4 {[%emt 0:03:50]} Ng5 {[%emt 0:02:
32]} 28. Qg2 {[%emt 0:00:06]} Qe6 {[%emt 0:06:02]} 29. Rc2 {[%emt 0:01:13]}
axb4 {[%emt 0:04:44]} 30. axb4 {[%emt 0:00:55]} Nh3+ {[%emt 0:05:13]} 31. Kf1 {
[%emt 0:00:06]} Ng5 {[%emt 0:03:28]} 32. Kg1 {[%emt 0:03:25]} Rf6 {[%emt 0:01:
02]} 33. b5 {[%emt 0:01:09]} c5 {[%emt 0:00:17]} 34. Kh1 {[%emt 0:04:02]} c4 {
[%emt 0:00:57]} 35. Ra1 {[%emt 0:00:57]} Nf3 {[%emt 0:03:04]} 36. Nxf3 {
[%emt 0:01:06]} exf3 {[%emt 0:00:02]} 37. Qf1 {[%emt 0:00:09]} Rh6 {[%emt 0:00:
46]} 38. Rca2 {[%emt 0:00:18]} Qd7 {[%emt 0:02:00]} 39. Ra5 {[%emt 0:09:01]}
Rg5 {[%emt 0:00:14]} 40. Ra8+ {[%emt 0:01:26]} Kg7 {[%emt 0:00:01]} 41. Qg1 {
[%emt 0:01:33]} Qxb5 {[%emt 0:01:28]} 42. h4 {[%emt 0:00:34]} Rgg6 {[%emt 0:01:
59]} 43. Rb1 {[%emt 0:00:24]} Qd7 {[%emt 0:00:21]} 44. Ra7 {[%emt 0:00:31]} Rb6
{[%emt 0:00:11]} 45. Kh2 {[%emt 0:00:29]} Qc7 {[%emt 0:01:09]} 46. Kh1 {
[%emt 0:00:45]} c3 {[%emt 0:00:21]} 47. Rc1 {[%emt 0:00:26]} c2 {[%emt 0:00:40]
} 48. Ra2 {[%emt 0:00:33]} Rhc6 {[%emt 0:00:31]} 49. Qe1 {[%emt 0:00:31]} Rb1 {
[%emt 0:00:39]} 50. e4 {[%emt 0:00:15]} Rxc1 {[%emt 0:00:38]} 51. Qxc1 {
[%emt 0:00:01]} dxe4 {[%emt 0:00:30]} 52. d5 {[%emt 0:00:23]} Qd7 {[%emt 0:00:
30]} 53. Kh2 {[%emt 0:00:49]} Qxd5 {[%emt 0:00:15]} 54. Rxc2 {[%emt 0:00:06]}
Rxc2 55. Qxc2 h5 {[%emt 0:00:30]} 56. Qc7+ {[%emt 0:00:07]} Kf6 {[%emt 0:00:14]
} 57. Qf4+ {[%emt 0:00:55]} Ke6 {[%emt 0:00:31]} 58. Qh6+ {[%emt 0:00:49]} Kd7
{[%emt 0:00:24]} 59. Qg7+ {[%emt 0:00:16]} Kc6 {[%emt 0:00:30]} 60. Qf6+ {
[%emt 0:01:04]} Kc5 {[%emt 0:00:23]} 61. Qc3+ {[%emt 0:00:22]} Kb5 {[%emt 0:00:
22]} 62. Qb2+ {[%emt 0:00:06]} Kc5 {[%emt 0:01:04]} 63. Qc3+ {[%emt 0:00:13]}
Kb5 {[%emt 0:00:02]} 64. Qb2+ {[%emt 0:00:05]} Kc6 {[%emt 0:00:15]} 65. Qf6+ {
[%emt 0:00:20]} Qd6 {[%emt 0:01:06]} 66. Qf5 {[%emt 0:00:27]} Qb4 {[%emt 0:00:
41]} 67. Qg6+ {[%emt 0:01:03]} Kc7 {[%emt 0:00:14]} 68. Qxh5 {[%emt 0:00:17]}
Qe1 {[%emt 0:00:50]} 69. Qc5+ {[%emt 0:00:04]} Kb8 {[%emt 0:00:14]} 70. Kh3 {
[%emt 0:01:32]} Qd2 {[%emt 0:00:43]} 71. Qe5+ {[%emt 0:00:48]} Kc8 {[%emt 0:00:
05]} 72. Qxe4 {[%emt 0:00:49]} Qxf2 {[%emt 0:00:05]} 73. Kg4 {[%emt 0:00:18]}
b5 {[%emt 0:01:20]} 74. Qc6+ {[%emt 0:01:07]} Kd8 {[%emt 0:00:02]} 75. Qd5+ {
[%emt 0:00:43]} Ke8 {[%emt 0:00:19]} 76. Qxb5+ {[%emt 0:00:05]} Kf8 {[%emt 0:
00:16]} 77. Qf5+ {[%emt 0:00:20]} Kg7 {[%emt 0:00:16]} 78. Qxf3 {[%emt 0:00:07]
} Qd4+ {[%emt 0:00:17]} 79. Kh3 {[%emt 0:00:07]} Qg1 {[%emt 0:00:41]} 80. h5 {
[%emt 0:00:27]} Kh6 {[%emt 0:00:58]} 81. Kg4 {[%emt 0:00:19]} Kg7 {[%emt 0:01:
07]} 82. Qb7+ {[%emt 0:00:17]} Kg8 {[%emt 0:00:23]} 83. Qd5+ {[%emt 0:00:04]}
Kg7 {[%emt 0:00:11]} 84. Qe5+ {[%emt 0:00:15]} Kg8 {[%emt 0:00:14]} 85. Qe6+ {
[%emt 0:00:30]} Kg7 {[%emt 0:00:25]} 86. Qd7+ {[%emt 0:00:40]} Kh6 {[%emt 0:01:
05]} 87. Qd2+ {[%emt 0:01:14]} Kh7 {[%emt 0:00:05]} 88. Qd3+ {[%emt 0:01:09]}
Kg7 {[%emt 0:00:34]} 89. Qg6+ {[%emt 0:00:54]} Kh8 {[%emt 0:00:14]} 90. Qe8+ {
[%emt 0:00:15]} Kh7 {[%emt 0:00:17]} 91. Qe4+ {[%emt 0:00:18]} Kg7 {[%emt 0:00:
53]} 92. Kh3 {[%emt 0:00:38]} Qf1+ {[%emt 0:00:19]} 93. Kh4 {[%emt 0:00:51]}
Qf6+ {[%emt 0:00:10]} 94. Kg4 {[%emt 0:00:10]} Qd6 {[%emt 0:00:32]} 95. Kh3 {
[%emt 0:01:04]} Qf8 {[%emt 0:01:38]} 96. Qe5+ {[%emt 0:00:52]} Kh7 {[%emt 0:00:
22]} 97. Qe4+ {[%emt 0:00:27]} Kg7 {[%emt 0:00:03]} 98. Qd4+ {[%emt 0:00:08]}
Kh7 {[%emt 0:00:23]} 99. Qd3+ {[%emt 0:00:10]} Kg7 {[%emt 0:00:03]} 100. g4 {
[%emt 0:00:05]} Qf6 {[%emt 0:01:28]} 101. Qd7+ {[%emt 0:00:41]} Kh6 {[%emt 0:
00:30]} 102. Qd2+ {[%emt 0:00:24]} Kh7 {[%emt 0:00:22]} 103. Qc2+ {[%emt 0:00:
36]} Kh6 {[%emt 0:00:08]} 104. Qc1+ {[%emt 0:00:25]} Kh7 {[%emt 0:00:06]} 105.
Qe3 {[%emt 0:00:21]} Qf7 {[%emt 0:01:23]} 106. Kh4 {[%emt 0:00:37]} Qf1 {
[%emt 0:00:49]} 107. Qe4+ {[%emt 0:00:38]} Kg7 {[%emt 0:00:22]} 108. Qe7+ {
[%emt 0:00:23]} Kg8 {[%emt 0:00:20]} 109. Qd8+ {[%emt 0:00:43]} Kh7 {[%emt 0:
00:25]} 110. Qd7+ {[%emt 0:00:34]} Kg8 {[%emt 0:00:26]} 111. Qd5+ {[%emt 0:00:
51]} Kg7 {[%emt 0:00:28]} 112. Qd7+ {[%emt 0:00:39]} Kg8 {[%emt 0:00:13]} 113.
Kg5 {[%emt 0:00:30]} Qc1+ {[%emt 0:00:15]} 114. Kg6 {[%emt 0:00:08]} Qb1+ {
[%emt 0:00:55]} 115. Qf5 {[%emt 0:00:45]} Qb6+ {[%emt 0:00:50]} 116. Qf6 {
[%emt 0:00:06]} Qb1+ {[%emt 0:00:22]} 117. Kh6 {[%emt 0:00:17]} Qh7+ {[%emt 0:
00:19]} 118. Kg5 {[%emt 0:00:02]} Qd7 {[%emt 0:00:26]} 119. Qg6+ {[%emt 0:01:
01]} Kh8 {[%emt 0:00:03]} 120. Qf5 {[%emt 0:00:31]} Qg7+ {[%emt 0:00:47]} 121.
Kf4 {[%emt 0:01:03]} Qd4+ {[%emt 0:00:04]} 122. Qe4 {[%emt 0:00:28]} Qf2+ {
[%emt 0:01:32]} 123. Kg5 {[%emt 0:00:53]} Qd2+ {[%emt 0:00:42]} 124. Kf5 {
[%emt 0:00:27]} Qd7+ {[%emt 0:00:20]} 125. Kg5 {[%emt 0:00:25]} Qd8+ {[%emt 0:
00:16]} 126. Kf4 {[%emt 0:00:25]} Qd2+ {[%emt 0:00:24]} 127. Kg3 {[%emt 0:00:
19]} Qc3+ {[%emt 0:00:45]} 128. Kh4 {[%emt 0:00:29]} Qf6+ {[%emt 0:00:11]} 129.
g5 {[%emt 0:00:53]} Qf2+ 130. Kg4 {[%emt 0:00:15]} Qg1+ {[%emt 0:00:02]} 131.
Kf5 {[%emt 0:00:14]} Qf2+ {[%emt 0:00:14]} 132. Qf4 {[%emt 0:00:38]} Qc2+ {
[%emt 0:00:14]} 133. Qe4 {[%emt 0:00:34]} Qf2+ {[%emt 0:00:03]} 134. Ke5 {
[%emt 0:00:54]} Qc5+ {[%emt 0:02:26]} 135. Qd5 {[%emt 0:00:27]} Qe3+ {[%emt 0:
01:01]} 136. Kd6 {[%emt 0:00:02]} Qb6+ {[%emt 0:00:19]} 137. Kd7 {[%emt 0:00:
28]} Qa7+ {[%emt 0:00:13]} 138. Ke8 {[%emt 0:00:32]} Qa4+ {[%emt 0:00:22]} 139.
Kd8 {[%emt 0:00:05]} Qf4 {[%emt 0:01:05]} 140. h6 {[%emt 0:00:38]} Qf8+ {
[%emt 0:00:31]} 141. Kd7 {[%emt 0:00:13]} Qf7+ {[%emt 0:00:20]} 142. Kc6 {
[%emt 0:00:13]} Qg6+ {[%emt 0:00:20]} 143. Kb5 {[%emt 0:00:29]} Qb1+ {[%emt 0:
00:23]} 144. Ka6 {[%emt 0:00:16]} Qa1+ {[%emt 0:01:09]} 145. Kb7 {[%emt 0:00:
37]} Qb2+ {[%emt 0:00:33]} 146. Kc8 {[%emt 0:00:07]} Qc2+ {[%emt 0:00:33]} 147.
Kd8 {[%emt 0:00:03]} Qc3 {[%emt 0:00:27]} 148. Kd7 {[%emt 0:01:11]} Qh3+ {
[%emt 0:00:32]} 149. Kd6 {[%emt 0:00:15]} Qa3+ {[%emt 0:00:17]} 150. Ke6 {
[%emt 0:00:09]} Qa6+ {[%emt 0:00:21]} 151. Ke5 {[%emt 0:00:45]} Qe2+ {[%emt 0:
00:48]} 152. Kf6 {[%emt 0:00:40]} Qf1+ {[%emt 0:00:37]} 153. Qf5 {[%emt 0:00:
24]} Qc1 {[%emt 0:00:23]} 154. Qe5 {[%emt 0:00:47]} 1-0

[Event "I Liga Centralne Srbije"]
[Site "Bajina Bašta, Serbia"]
[Date "2020.10.14"]
[Round "7.1"]
[White "Perunovic, Miodrag"]
[Black "Maksimovic, Bojan"]
[Result "0-1"]
[ECO "B23"]
[WhiteElo "2440"]
[BlackElo "2398"]
[Annotator "Knez"]
[PlyCount "166"]
[EventDate "2020.??.??"]
[TimeControl "90"]
[WhiteClock "0:03:56"]
[BlackClock "0:02:59"]

1. e4 {[%emt 0:00:00]} c5 {[%emt 0:00:00]} 2. Nc3 {[%emt 0:00:00]} Nc6 {
[%emt 0:00:00]} 3. Bb5 {[%emt 0:00:00]} g6 {[%emt 0:00:00]} 4. Bxc6 {[%emt 0:
00:00]} bxc6 {[%emt 0:00:00]} 5. d3 {[%emt 0:00:00]} Bg7 {[%emt 0:00:00]} 6. f4
{[%emt 0:00:00]} d6 {[%emt 0:00:00]} 7. Nf3 {[%emt 0:00:00]} f5 {[%emt 0:00:00]
} 8. e5 {[%emt 0:00:00]} Nh6 {[%emt 0:00:00]} 9. O-O {[%emt 0:00:00]} O-O {
[%emt 0:00:00]} 10. Kh1 {[%emt 0:00:00]} Qc7 {[%emt 0:00:00]} 11. Qe2 {[%emt 0:
00:00]} Nf7 {[%emt 0:00:00]} 12. Re1 {[%emt 0:00:00]} Nd8 {[%emt 0:00:00]} 13.
Na4 {[%emt 0:00:00]} Ne6 {[%emt 0:00:00]} 14. Qf2 {[%emt 0:00:00]} Bd7 {
[%emt 0:00:00]} 15. Bd2 {[%emt 0:00:00]} Rae8 {[%emt 0:00:00]} 16. Re2 {
[%emt 0:00:00]} a5 {[%emt 0:00:00]} 17. Rae1 {[%emt 0:00:00]} Qa7 {[%emt 0:00:
00]} 18. Qh4 {[%emt 0:00:00]} Nd4 {[%emt 0:00:00]} 19. Nxd4 {[%emt 0:00:00]}
cxd4 {[%emt 0:00:00]} 20. b3 {[%emt 0:00:00]} c5 {[%emt 0:00:00]} 21. Nb2 {
[%emt 0:00:00]} a4 {[%emt 0:00:00]} 22. Nd1 {[%emt 0:00:00]} axb3 {[%emt 0:00:
00]} 23. axb3 {[%emt 0:00:00]} Bc6 {[%emt 0:00:00]} 24. Nf2 {[%emt 0:00:00]}
Qb7 {[%emt 0:00:00]} 25. Nh3 {[%emt 0:00:00]} h6 {[%emt 0:00:00]} 26. Kg1 {
[%emt 0:00:00]} Qd7 {[%emt 0:00:00]} 27. Qg3 {[%emt 0:00:00]} Kh7 {[%emt 0:00:
00]} 28. b4 {[%emt 0:00:00]} e6 {[%emt 0:00:00]} 29. exd6 {[%emt 0:00:00]} Qxd6
{[%emt 0:00:00]} 30. bxc5 {[%emt 0:00:00]} Qxc5 {[%emt 0:00:00]} 31. Qh4 {
[%emt 0:00:00]} Bd5 {[%emt 0:00:00]} 32. Rc1 {[%emt 0:00:00]} Bf6 {[%emt 0:00:
00]} 33. Qe1 {[%emt 0:00:00]} Rb8 {[%emt 0:00:00]} 34. Nf2 {[%emt 0:00:00]}
Rfc8 {[%emt 0:00:00]} 35. Nd1 {[%emt 0:00:00]} Rc6 {[%emt 0:00:00]} 36. Kf1 {
[%emt 0:00:00]} Qd6 {[%emt 0:00:07]} 37. Qf2 {[%emt 0:00:00]} Rbc8 {[%emt 0:00:
00]} 38. Be1 {[%emt 0:00:00]} Qa3 {[%emt 0:00:00]} 39. Rb1 {[%emt 0:00:00]}
Rxc2 {[%emt 0:00:00]} 40. Rd2 {[%emt 0:00:43]} Rc1 {[%emt 0:00:15]} 41. Rb6 {
[%emt 0:00:09]} Qc5 {[%emt 0:00:00]} 42. Ra6 {[%emt 0:00:00]} Qb5 {[%emt 0:00:
00]} 43. Ra7+ {[%emt 0:00:00]} R8c7 {[%emt 0:00:00]} 44. Rxc7+ {[%emt 0:00:00]}
Rxc7 {[%emt 0:00:00]} 45. Qe2 {[%emt 0:00:00]} Rc1 {[%emt 0:00:00]} 46. Nb2 {
[%emt 0:00:00]} Qb3 {[%emt 0:00:00]} 47. Nd1 {[%emt 0:00:00]} Qb7 {[%emt 0:00:
00]} 48. Nb2 {[%emt 0:00:00]} Qc6 {[%emt 0:00:00]} 49. Rd1 {[%emt 0:00:00]} Rc2
{[%emt 0:00:00]} 50. Rd2 {[%emt 0:00:00]} Rc1 {[%emt 0:00:13]} 51. Rd1 {
[%emt 0:00:00]} Rxd1 {[%emt 0:00:03]} 52. Nxd1 {[%emt 0:00:00]} Qc7 {[%emt 0:
00:06]} 53. Qd2 {[%emt 0:00:00]} Be7 {[%emt 0:00:00]} 54. Bf2 {[%emt 0:00:00]}
Bd6 {[%emt 0:00:00]} 55. Bxd4 {[%emt 0:00:00]} Bxf4 {[%emt 0:00:00]} 56. Be3 {
[%emt 0:00:00]} Bxe3 {[%emt 0:00:00]} 57. Nxe3 {[%emt 0:00:00]} Qxh2 {[%emt 0:
00:00]} 58. Qb4 {[%emt 0:00:00]} Qc7 {[%emt 0:00:00]} 59. Qd4 {[%emt 0:00:00]}
Qg7 {[%emt 0:00:00]} 60. Qc5 {[%emt 0:00:00]} Qa1+ {[%emt 0:00:00]} 61. Kf2 {
[%emt 0:00:00]} Qb2+ {[%emt 0:00:00]} 62. Kg1 {[%emt 0:00:00]} Qb1+ {[%emt 0:
00:00]} 63. Kh2 {[%emt 0:00:00]} Qb8+ {[%emt 0:00:00]} 64. Kg1 {[%emt 0:00:00]}
Qb7 {[%emt 0:00:00]} 65. Kh2 {[%emt 0:00:00]} g5 {[%emt 0:00:00]} 66. Qf8 {
[%emt 0:00:00]} Qc7+ {[%emt 0:00:00]} 67. Kg1 {[%emt 0:00:00]} Qa7 {[%emt 0:00:
00]} 68. Kh2 {[%emt 0:00:00]} Qg7 {[%emt 0:00:00]} 69. Qd6 {[%emt 0:00:00]} Qb7
{[%emt 0:00:00]} 70. Qf8 {[%emt 0:00:00]} Qc7+ {[%emt 0:00:00]} 71. Kg1 {
[%emt 0:00:00]} Qg7 {[%emt 0:00:00]} 72. Qd6 {[%emt 0:00:00]} Qa7 {[%emt 0:00:
00]} 73. Kh2 {[%emt 0:00:00]} Qxe3 {[%emt 0:00:00]} 74. Qe7+ {[%emt 0:00:00]}
Kg6 {[%emt 0:00:00]} 75. Qe8+ {[%emt 0:00:00]} Kf6 {[%emt 0:00:00]} 76. Qh8+ {
[%emt 0:00:00]} Ke7 {[%emt 0:00:00]} 77. Qg7+ {[%emt 0:00:00]} Kd6 {[%emt 0:00:
00]} 78. d4 {[%emt 0:00:00]} Qf4+ {[%emt 0:00:00]} 79. Kg1 {[%emt 0:00:00]}
Qc1+ {[%emt 0:00:00]} 80. Kh2 {[%emt 0:00:00]} Qc7 {[%emt 0:00:00]} 81. Qf8+ {
[%emt 0:00:00]} Kd7+ {[%emt 0:00:00]} 82. Kg1 {[%emt 0:00:00]} Qc1+ {[%emt 0:
00:00]} 83. Kh2 {[%emt 0:00:00]} Qf4+ {[%emt 0:00:00]} 0-1

[Event "I Liga Centralne Srbije"]
[Site "Bajina Bašta, Serbia"]
[Date "2020.10.14"]
[Round "7.1"]
[White "Jovanovic, Dusan D"]
[Black "Pavlovic, Dejan S"]
[Result "1/2-1/2"]
[ECO "A12"]
[WhiteElo "2412"]
[BlackElo "2390"]
[Annotator "Knez"]
[PlyCount "55"]
[EventDate "2020.??.??"]
[TimeControl "90"]

1. Nf3 {[%emt 2:55:48]} d5 {[%emt 0:00:18]} 2. b3 {[%emt 0:00:24]} Bg4 {
[%emt 0:00:21]} 3. e3 {[%emt 0:00:46]} Nd7 {[%emt 0:01:05]} 4. Bb2 {[%emt 0:00:
31]} Ngf6 {[%emt 0:00:40]} 5. Be2 {[%emt 0:03:01]} e6 {[%emt 0:00:22]} 6. c4 {
[%emt 0:00:54]} c6 {[%emt 0:02:56]} 7. Nc3 {[%emt 0:02:14]} Bd6 {[%emt 0:00:46]
} 8. cxd5 {[%emt 0:06:53]} cxd5 {[%emt 0:28:52]} 9. h3 {[%emt 0:05:18]} Bxf3 {
[%emt 0:05:32]} 10. Bxf3 {[%emt 0:00:24]} O-O {[%emt 0:01:25]} 11. O-O {
[%emt 0:00:08]} Qa5 {[%emt 0:03:37]} 12. a3 {[%emt 0:07:15]} b5 {[%emt 0:00:58]
} 13. e4 {[%emt 0:23:21]} d4 {[%emt 0:09:47]} 14. Ne2 {[%emt 0:07:58]} d3 {
[%emt 0:05:37]} 15. Nc3 {[%emt 0:04:29]} Rad8 {[%emt 0:02:49]} 16. g3 {[%emt 0:
04:21]} Qb6 {[%emt 0:00:12]} 17. Kh2 {[%emt 0:00:09]} Bc5 {[%emt 0:01:07]} 18.
Qe1 {[%emt 0:02:03]} Bd4 {[%emt 0:01:12]} 19. Rb1 {[%emt 0:07:49]} e5 {[%emt 0:
03:20]} 20. g4 {[%emt 0:06:58]} h6 {[%emt 0:02:33]} 21. h4 {[%emt 0:01:57]} Nc5
{[%emt 0:04:51]} 22. Nd5 {[%emt 0:03:11]} Rxd5 {[%emt 0:00:42]} 23. exd5 {
[%emt 0:00:06]} Bxb2 {[%emt 0:00:06]} 24. Rxb2 {[%emt 0:00:12]} e4 {[%emt 0:00:
07]} 25. Bd1 {[%emt 0:00:38]} Qd6+ {[%emt 0:09:09]} 26. f4 {[%emt 0:02:49]}
Qxd5 {[%emt 0:08:18]} 27. g5 {[%emt 0:00:21]} Ne8 {[%emt 0:03:45]} 28. b4 {
[%emt 0:02:38]} 1/2-1/2

[Event "I Liga Centralne Srbije"]
[Site "Bajina Bašta, Serbia"]
[Date "2020.10.14"]
[Round "7.1"]
[White "Radovanovic, Dusan"]
[Black "Ivanovic, Marko"]
[Result "1-0"]
[ECO "C45"]
[WhiteElo "2326"]
[BlackElo "2277"]
[Annotator "Knez"]
[PlyCount "135"]
[EventDate "2020.??.??"]
[TimeControl "90"]
[WhiteClock "0:03:04"]
[BlackClock "0:01:45"]

1. e4 {[%emt 0:00:00]} e5 {[%emt 0:00:00]} 2. Nf3 {[%emt 0:00:00]} Nc6 {
[%emt 0:00:00]} 3. Bc4 {[%emt 0:00:00]} g6 {[%emt 0:00:00]} 4. d4 {[%emt 0:00:
00]} exd4 {[%emt 0:00:00]} 5. Nxd4 {[%emt 0:00:00]} Bg7 {[%emt 0:00:00]} 6.
Nxc6 {[%emt 0:00:00]} bxc6 {[%emt 0:00:00]} 7. Nc3 {[%emt 0:00:00]} Ne7 {
[%emt 0:00:00]} 8. Be3 {[%emt 0:00:00]} d6 {[%emt 0:00:00]} 9. Bd4 {[%emt 0:00:
00]} O-O {[%emt 0:00:00]} 10. Bxg7 {[%emt 0:00:00]} Kxg7 {[%emt 0:00:00]} 11.
Qd4+ {[%emt 0:00:00]} Kg8 {[%emt 0:00:00]} 12. O-O {[%emt 0:00:00]} Be6 {
[%emt 0:00:00]} 13. Rad1 {[%emt 0:00:00]} Rb8 {[%emt 0:00:00]} 14. Bxe6 {
[%emt 0:00:00]} fxe6 {[%emt 0:00:00]} 15. b4 {[%emt 0:00:00]} g5 {[%emt 0:00:
00]} 16. Qc4 {[%emt 0:00:00]} Qd7 {[%emt 0:00:00]} 17. Na4 {[%emt 0:00:00]} Ng6
{[%emt 0:00:00]} 18. Nc5 {[%emt 0:00:00]} Qf7 {[%emt 0:00:00]} 19. Nd3 {
[%emt 0:00:00]} Nf4 {[%emt 0:00:00]} 20. Nxf4 {[%emt 0:00:00]} gxf4 {[%emt 0:
00:00]} 21. a3 {[%emt 0:00:00]} f3 {[%emt 0:00:00]} 22. g3 {[%emt 0:00:00]} Rb5
{[%emt 0:00:00]} 23. Rfe1 {[%emt 0:00:00]} Qg6 {[%emt 0:00:00]} 24. e5 {
[%emt 0:00:00]} d5 {[%emt 0:00:00]} 25. Qxc6 {[%emt 0:00:00]} Rb6 {[%emt 0:00:
00]} 26. Qc3 {[%emt 0:00:00]} Qg4 {[%emt 0:00:00]} 27. Qd3 {[%emt 0:00:00]} Rc6
{[%emt 0:00:00]} 28. Re3 {[%emt 0:00:00]} Rf5 {[%emt 0:00:00]} 29. h3 {[%emt 0:
00:00]} Qxh3 {[%emt 0:00:00]} 30. Qf1 {[%emt 0:00:00]} Qh6 {[%emt 0:00:00]} 31.
Rd4 {[%emt 0:00:00]} Rh5 {[%emt 0:00:00]} 32. Rh4 {[%emt 0:00:00]} Rxh4 {
[%emt 0:00:00]} 33. gxh4 {[%emt 0:00:00]} Rxc2 {[%emt 0:00:00]} 34. Qh3 {
[%emt 0:00:00]} Qg6+ {[%emt 0:00:00]} 35. Qg3 {[%emt 0:00:00]} Qxg3+ {[%emt 0:
00:00]} 36. fxg3 {[%emt 0:00:00]} Rg2+ {[%emt 0:00:00]} 37. Kf1 {[%emt 0:00:00]
} Rxg3 {[%emt 0:00:00]} 38. Rc3 {[%emt 0:00:00]} Rg7 {[%emt 0:00:00]} 39. Rc6 {
[%emt 0:00:00]} Re7 {[%emt 0:00:00]} 40. Kf2 {[%emt 0:00:00]} Kf7 {[%emt 0:00:
00]} 41. Kxf3 {[%emt 0:00:00]} Kg6 {[%emt 0:00:00]} 42. b5 {[%emt 0:00:00]} Kf5
{[%emt 0:00:00]} 43. Ra6 {[%emt 0:00:00]} Kxe5 {[%emt 0:00:00]} 44. Rxa7 {
[%emt 0:00:00]} Kd6 {[%emt 0:00:00]} 45. a4 {[%emt 0:00:00]} Kc5 {[%emt 0:00:
00]} 46. Rb7 {[%emt 0:00:00]} Kd6 {[%emt 0:00:00]} 47. a5 {[%emt 0:00:28]} Rf7+
{[%emt 0:00:00]} 48. Ke3 {[%emt 0:00:12]} Rf1 {[%emt 0:00:00]} 49. a6 {[%emt 0:
00:10]} Ra1 {[%emt 0:00:00]} 50. Kd3 {[%emt 0:00:07]} e5 {[%emt 0:00:00]} 51.
Rb8 {[%emt 0:00:00]} Kc5 {[%emt 0:00:00]} 52. Rb7 {[%emt 0:00:00]} Ra3+ {
[%emt 0:00:00]} 53. Kc2 {[%emt 0:00:00]} e4 {[%emt 0:00:00]} 54. Rxc7+ {
[%emt 0:00:00]} Kxb5 {[%emt 0:00:00]} 55. a7 {[%emt 0:00:00]} d4 {[%emt 0:00:
00]} 56. Rxh7 {[%emt 0:00:00]} e3 {[%emt 0:00:00]} 57. Rd7 {[%emt 0:00:00]} Kc4
{[%emt 0:00:00]} 58. Rc7+ {[%emt 0:00:00]} Kd5 {[%emt 0:00:00]} 59. h5 {
[%emt 0:00:00]} d3+ {[%emt 0:00:00]} 60. Kb2 {[%emt 0:00:00]} Ra6 {[%emt 0:00:
00]} 61. Rd7+ {[%emt 0:00:00]} Kc4 {[%emt 0:00:00]} 62. Rc7+ {[%emt 0:00:00]}
Kb5 {[%emt 0:00:00]} 63. Rb7+ {[%emt 0:00:00]} Kc5 {[%emt 0:00:00]} 64. Rc7+ {
[%emt 0:00:00]} Kb6 {[%emt 0:00:00]} 65. Re7 {[%emt 0:00:00]} d2 {[%emt 0:00:
00]} 66. Re6+ {[%emt 0:00:00]} Kxa7 {[%emt 0:00:00]} 67. Rxa6+ {[%emt 0:00:00]}
Kxa6 {[%emt 0:00:00]} 68. Kc2 {[%emt 0:00:00]} 1-0

[Event "I Liga Centralne Srbije"]
[Site "Bajina Bašta, Serbia"]
[Date "2020.10.14"]
[Round "7.1"]
[White "Djordjevic, Nebojsa"]
[Black "Radivojevic, Ivan"]
[Result "1/2-1/2"]
[ECO "E11"]
[WhiteElo "2255"]
[BlackElo "2365"]
[Annotator "Knez"]
[PlyCount "37"]
[EventDate "2020.??.??"]
[TimeControl "90"]
[WhiteClock "0:34:34"]
[BlackClock "1:28:49"]

1. d4 {[%emt 0:00:02]} Nf6 {[%emt 0:00:00]} 2. c4 {[%emt 0:00:00]} e6 {[%emt 0:
00:00]} 3. Nf3 {[%emt 0:00:00]} Bb4+ {[%emt 0:00:00]} 4. Bd2 {[%emt 0:00:00]}
Qe7 {[%emt 0:00:00]} 5. e3 {[%emt 0:00:00]} O-O {[%emt 0:00:00]} 6. Be2 {
[%emt 0:00:00]} Bxd2+ {[%emt 0:00:00]} 7. Qxd2 {[%emt 0:00:00]} d6 {[%emt 0:00:
00]} 8. O-O {[%emt 0:00:00]} e5 {[%emt 0:00:00]} 9. dxe5 {[%emt 0:00:00]} dxe5
{[%emt 0:00:00]} 10. Nc3 {[%emt 0:00:00]} Rd8 {[%emt 0:00:00]} 11. Qc2 {
[%emt 0:00:00]} c6 {[%emt 0:00:00]} 12. Rfd1 {[%emt 0:00:00]} Re8 {[%emt 0:00:
00]} 13. a3 {[%emt 0:00:00]} Bg4 {[%emt 0:00:00]} 14. Nd2 {[%emt 0:00:00]} Bxe2
{[%emt 0:00:00]} 15. Nxe2 {[%emt 0:00:00]} Nbd7 {[%emt 0:00:00]} 16. Ng3 {
[%emt 0:00:00]} Red8 {[%emt 0:00:00]} 17. Nde4 {[%emt 0:00:00]} Nxe4 {[%emt 0:
00:00]} 18. Nxe4 {[%emt 0:00:00]} Nf6 {[%emt 0:00:00]} 19. Nxf6+ {[%emt 0:00:
00]} 1/2-1/2

[Event "I Liga Centralne Srbije"]
[Site "Bajina Bašta, Serbia"]
[Date "2020.10.14"]
[Round "7.1"]
[White "Marcetic, Nikola"]
[Black "Maksimovic, Boban"]
[Result "1/2-1/2"]
[ECO "A47"]
[WhiteElo "2329"]
[BlackElo "2216"]
[Annotator "Knez"]
[PlyCount "24"]
[EventDate "2020.??.??"]
[TimeControl "90"]
[WhiteClock "1:21:12"]
[BlackClock "0:55:35"]

1. d4 {[%emt 0:00:00]} Nf6 {[%emt 0:00:00]} 2. Bg5 {[%emt 0:00:00]} e6 {
[%emt 0:00:00]} 3. e3 {[%emt 0:00:00]} Be7 {[%emt 0:00:00]} 4. Bd3 {[%emt 0:00:
00]} b6 {[%emt 0:00:00]} 5. Nf3 {[%emt 0:00:00]} Bb7 {[%emt 0:00:00]} 6. O-O {
[%emt 0:00:00]} d6 {[%emt 0:00:00]} 7. Nbd2 {[%emt 0:00:00]} Nbd7 {[%emt 0:00:
00]} 8. Re1 {[%emt 0:00:00]} h6 {[%emt 0:00:00]} 9. Bxf6 {[%emt 0:00:00]} Bxf6
{[%emt 0:00:00]} 10. c3 {[%emt 0:00:00]} O-O {[%emt 0:00:00]} 11. e4 {[%emt 0:
00:00]} e5 {[%emt 0:00:00]} 12. dxe5 {[%emt 0:00:00]} dxe5 {[%emt 0:00:00]}
1/2-1/2